[Event "VI Sunway Sitges Open 2019"]
[Site "Sitges"]
[Date "2019.12.17"]
[Round "5.44"]
[White "Zadruzny, Nicolaj"]
[Black "Pogonina, Natalija"]
[Result "1-0"]
[ECO "A46"]
[WhiteElo "2308"]
[BlackElo "2479"]
[Annotator "ChessBase"]
[PlyCount "61"]
[EventDate "2019.12.13"]
[EventType "swiss"]
[EventCountry "ESP"]
[SourceTitle "playchess.com"]
[Source "ChessBase"]
[SourceQuality "1"]
[TimeControl "40/5400+30:1800+30"]

1. d4 {[%emt 0:00:00]} Nf6 {[%emt 0:00:25]} 2. Nf3 {[%emt 0:00:00]} e6 {[%emt 0:00:29]} 3. g3 {[%emt 0:00:05]} b5 {[%emt 0:04:39]} 4. Bg2 {[%emt 0:00:07]} Bb7 {[%emt 0:00:03]} 5. O-O {[%emt 0:00:34]} Be7 {[%emt 0:01:47]} 6. Bg5 {[%emt 0:01:53]} O-O {[%emt 0:03:40]} 7. Qd3 {[%emt 0:00:52]} a6 {[%emt 0:21:01]} 8. a4 {[%emt 0:03:06]} b4 {[%emt 0:05:31]} 9. c4 {[%emt 0:00:21]} bxc3 {[%emt 0:02:09]} 10. bxc3 {[%emt 0:01:14]} d5 {[%emt 0:03:09]} 11. Nbd2 {[%emt 0:03:03]} a5 {[%emt 0:01:01]} 12. Qc2 {[%emt 0:11:52]} h6 {[%emt 0:06:21]} 13. Bxf6 {[%emt 0:02:09]} Bxf6 {[%emt 0:00:04]} 14. e4 {[%emt 0:08:59]} Nd7 {[%emt 0:00:48]} 15. c4 {[%emt 0:02:22]} c5 {[%emt 0:06:46]} 16. Rab1 {[%emt 0:12:06]} Ba6 {[%emt 0:09:32]} 17. e5 {[%emt 0:24:46]} Be7 {[%emt 0:00:26]} 18. Rfe1 {[%emt 0:00:39]} dxc4 {[%emt 0:09:20]} 19. dxc5 {[%emt 0:00:42]} Rc8 {[%emt 0:01:32]} 20. c6 {[%emt 0:00:29]} Nb6 {[%emt 0:06:06]} 21. Red1 {[%emt 0:00:12]} Qc7 {[%emt 0:02:21]} 22. Nd4 {[%emt 0:00:38]} Bb4 {[%emt 0:00:40]} 23. f4 {[%emt 0:06:51]} Nd5 {[%emt 0:01:25]} 24. Bxd5 {[%emt 0:08:28]} exd5 {[%emt 0:00:05]} 25. N2f3 {[%emt 0:01:12]} Bc5 {[%emt 0:00:47]} 26. Kg2 {[%emt 0:00:13]} Rb8 {[%emt 0:00:29]} 27. e6 {[%emt 0:03:22]} fxe6 {[%emt 0:05:39]} 28. Nxe6 {[%emt 0:00:40]} Qd6 {[%emt 0:04:27]} 29. Qg6 {[%emt 0:00:56]} Qe7 {[%emt 0:00:05]} 30. Rxb8 {[%emt 0:01:25]} Rxb8 {[%emt 0:00:10]} 31. Rxd5 {[%emt 0:00:16]} 1-0

[Event "VI Sunway Sitges Open 2019"]
[Site "Sitges"]
[Date "2019.12.17"]
[Round "5.46"]
[White "Janik, Igor"]
[Black "Rakshitta Ravi"]
[Result "1-0"]
[ECO "A30"]
[WhiteElo "2466"]
[BlackElo "2260"]
[Annotator "ChessBase"]
[PlyCount "79"]
[EventDate "2019.12.13"]
[EventType "swiss"]
[EventCountry "ESP"]
[SourceTitle "playchess.com"]
[Source "ChessBase"]
[SourceQuality "1"]
[TimeControl "40/5400+30:1800+30"]

1. c4 {[%emt 0:00:00]} c5 {[%emt 0:00:00]} 2. Nf3 {[%emt 0:00:09]} Nf6 {[%emt 0:01:31]} 3. g3 {[%emt 0:01:57]} b6 {[%emt 0:00:08]} 4. Bg2 {[%emt 0:00:12]} Bb7 {[%emt 0:00:01]} 5. O-O {[%emt 0:00:30]} e6 {[%emt 0:00:16]} 6. Nc3 {[%emt 0:01:37]} Be7 {[%emt 0:00:08]} 7. d4 {[%emt 0:02:17]} cxd4 {[%emt 0:00:07]} 8. Qxd4 {[%emt 0:00:07]} d6 {[%emt 0:02:20]} 9. Rd1 {[%emt 0:06:42]} a6 {[%emt 0:01:12]} 10. Bg5 {[%emt 0:11:47]} Nbd7 {[%emt 0:01:16]} 11. Qd2 {[%emt 0:01:15]} O-O {[%emt 0:08:37]} 12. Bf4 {[%emt 0:06:01]} Ne8 {[%emt 0:01:21]} 13. Rac1 {[%emt 0:03:02]} Qc7 {[%emt 0:04:01]} 14. b3 {[%emt 0:01:15]} Rd8 {[%emt 0:06:26]} 15. e4 {[%emt 0:06:45]} Qb8 {[%emt 0:02:30]} 16. Qe2 {[%emt 0:01:51]} Nef6 {[%emt 0:07:32]} 17. Nd4 {[%emt 0:00:38]} Rfe8 {[%emt 0:02:26]} 18. Nc2 {[%emt 0:04:44]} Rc8 {[%emt 0:07:42]} 19. g4 {[%emt 0:09:46]} Ne5 {[%emt 0:03:03]} 20. g5 {[%emt 0:03:42]} Nfd7 {[%emt 0:00:37]} 21. Bd2 {[%emt 0:05:51]} Bd8 {[%emt 0:06:06]} 22. f4 {[%emt 0:04:17]} Ng6 {[%emt 0:00:53]} 23. Qg4 {[%emt 0:00:08]} Nc5 {[%emt 0:07:36]} 24. Qg3 {[%emt 0:07:41]} Qa8 {[%emt 0:09:40]} 25. Re1 {[%emt 0:03:46]} e5 {[%emt 0:06:01]} 26. fxe5 {[%emt 0:01:04]} dxe5 {[%emt 0:00:59]} 27. Nd5 {[%emt 0:00:11]} Ne6 {[%emt 0:03:22]} 28. h4 {[%emt 0:01:00]} b5 {[%emt 0:01:30]} 29. Nce3 {[%emt 0:01:39]} Nd4 {[%emt 0:03:08]} 30. Ng4 {[%emt 0:03:55]} Bxd5 {[%emt 0:00:45]} 31. exd5 {[%emt 0:00:41]} Nf5 {[%emt 0:00:53]} 32. Qf2 {[%emt 0:00:16]} Nfxh4 {[%emt 0:02:54]} 33. Be4 {[%emt 0:02:15]} Qb7 {[%emt 0:01:22]} 34. c5 {[%emt 0:00:02]} Qd7 {[%emt 0:00:12]} 35. Qg3 {[%emt 0:01:06]} a5 {[%emt 0:01:31]} 36. Be3 {[%emt 0:01:17]} Bc7 {[%emt 0:01:49]} 37. Qh3 {[%emt 0:01:49]} Qd8 {[%emt 0:01:07]} 38. d6 {[%emt 0:02:44]} Bxd6 {[%emt 0:00:27]} 39. Red1 {[%emt 0:00:41]} Bxc5 {[%emt 0:00:54]} 40. Rxd8 {[%emt 0:01:25]} 1-0

[Event "VI Sunway Sitges Open 2019"]
[Site "Sitges"]
[Date "2019.12.17"]
[Round "5.47"]
[White "Risting, Eivind Olav"]
[Black "Kobo, Ori"]
[Result "1/2-1/2"]
[ECO "D37"]
[WhiteElo "2307"]
[BlackElo "2457"]
[Annotator "ChessBase"]
[PlyCount "90"]
[EventDate "2019.12.13"]
[EventType "swiss"]
[EventCountry "ESP"]
[SourceTitle "playchess.com"]
[Source "ChessBase"]
[SourceQuality "1"]
[TimeControl "40/5400+30:1800+30"]

1. d4 {[%emt 0:00:00]} Nf6 {[%emt 0:00:00]} 2. c4 {[%emt 0:00:00]} e6 {[%emt 0:00:00]} 3. Nf3 {[%emt 0:00:28]} d5 {[%emt 0:00:13]} 4. Nc3 {[%emt 0:01:04]} Be7 {[%emt 0:00:08]} 5. Bf4 {[%emt 0:00:58]} O-O {[%emt 0:00:15]} 6. e3 {[%emt 0:00:55]} Nbd7 {[%emt 0:00:22]} 7. Be2 {[%emt 0:01:44]} dxc4 {[%emt 0:01:34]} 8. O-O {[%emt 0:00:18]} c5 {[%emt 0:03:19]} 9. dxc5 {[%emt 0:11:20]} Nxc5 {[%emt 0:00:28]} 10. Bxc4 {[%emt 0:00:25]} a6 {[%emt 0:02:15]} 11. Ne5 {[%emt 0:09:58]} Ncd7 {[%emt 0:17:29]} 12. Be2 {[%emt 0:18:14]} Nxe5 {[%emt 0:20:46]} 13. Bxe5 {[%emt 0:01:09]} Qa5 {[%emt 0:05:44]} 14. Bg3 {[%emt 0:02:48]} Bd7 {[%emt 0:03:49]} 15. Bf3 {[%emt 0:05:16]} Rad8 {[%emt 0:00:29]} 16. Qb3 {[%emt 0:02:34]} b5 {[%emt 0:01:46]} 17. a3 {[%emt 0:01:40]} Rc8 {[%emt 0:02:20]} 18. Rfd1 {[%emt 0:01:53]} Bc6 {[%emt 0:00:46]} 19. Bxc6 {[%emt 0:10:01]} Rxc6 {[%emt 0:00:24]} 20. Rd4 {[%emt 0:03:05]} b4 {[%emt 0:10:40]} 21. Ne2 {[%emt 0:02:12]} Rfc8 {[%emt 0:05:04]} 22. Rdd1 {[%emt 0:05:26]} bxa3 {[%emt 0:00:29]} 23. bxa3 {[%emt 0:00:14]} Bf8 {[%emt 0:06:40]} 24. Qd3 {[%emt 0:07:48]} Nd5 {[%emt 0:02:59]} 25. Be5 {[%emt 0:01:32]} Rc4 {[%emt 0:02:48]} 26. h3 {[%emt 0:01:39]} h6 {[%emt 0:01:24]} 27. Bd4 {[%emt 0:01:14]} Qa4 {[%emt 0:02:10]} 28. Ng3 {[%emt 0:02:59]} Nc3 {[%emt 0:02:58]} 29. Rd2 {[%emt 0:03:43]} Nb5 {[%emt 0:03:00]} 30. Ne2 {[%emt 0:00:16]} Rc2 {[%emt 0:01:45]} 31. Rxc2 {[%emt 0:01:14]} Rxc2 {[%emt 0:00:47]} 32. Qd1 {[%emt 0:01:28]} Rc4 {[%emt 0:01:59]} 33. Qxa4 {[%emt 0:00:49]} Rxa4 {[%emt 0:00:02]} 34. Bb2 {[%emt 0:00:29]} Kh7 {[%emt 0:01:29]} 35. Kf1 {[%emt 0:00:08]} g5 {[%emt 0:00:17]} 36. Nd4 {[%emt 0:01:14]} Nd6 {[%emt 0:00:31]} 37. Ke2 {[%emt 0:00:32]} Bg7 {[%emt 0:00:35]} 38. Ra2 {[%emt 0:01:12]} Nc4 {[%emt 0:00:29]} 39. Bc1 {[%emt 0:00:26]} Kg6 {[%emt 0:00:41]} 40. Nc2 {[%emt 0:00:00]} Nd6 {[%emt 0:00:00]} 41. Nb4 {[%emt 0:06:55]} a5 {[%emt 0:04:34]} 42. Nd3 {[%emt 0:01:29]} Rc4 {[%emt 0:02:14]} 43. Bd2 {[%emt 0:02:43]} a4 {[%emt 0:00:21]} 44. Kd1 {[%emt 0:02:49]} Nb5 {[%emt 0:02:47]} 45. Bb4 {[%emt 0:00:34]} Nc3+ {[%emt 0:09:58]} 1/2-1/2

[Event "VI Sunway Sitges Open 2019"]
[Site "Sitges"]
[Date "2019.12.17"]
[Round "5.48"]
[White "Vanduyfhuys, Daria"]
[Black "Boyer, Mahel"]
[Result "0-1"]
[ECO "A84"]
[WhiteElo "1973"]
[BlackElo "2286"]
[Annotator "NA"]
[PlyCount "100"]
[EventDate "2019.12.13"]
[EventType "swiss"]
[EventCountry "ESP"]
[SourceTitle "playchess.com"]
[Source "ChessBase"]
[SourceQuality "1"]
[TimeControl "40/5400+30:1800+30"]

1. d4 {[%emt 0:00:00]} f5 {[%emt 0:00:36]} 2. c4 {[%emt 0:00:00]} Nf6 {[%emt 0:00:13]} 3. Nc3 {[%emt 0:00:00]} e6 {[%emt 0:01:00]} 4. Nf3 {[%emt 0:00:12]} Bb4 {[%emt 0:02:10]} 5. Bd2 {[%emt 0:01:24]} b6 {[%emt 0:07:16]} 6. g3 {[%emt 0:00:15]} Bb7 {[%emt 0:00:22]} 7. Bg2 {[%emt 0:00:07]} O-O {[%emt 0:02:38]} 8. O-O {[%emt 0:00:10]} d6 {[%emt 0:01:00]} 9. Qc2 {[%emt 0:06:22]} Bxc3 {[%emt 0:02:17]} 10. Bxc3 {[%emt 0:00:06]} Be4 {[%emt 0:00:32]} 11. Qb3 {[%emt 0:02:28]} Qe7 {[%emt 0:06:54]} 12. Nd2 {[%emt 0:07:18]} Bxg2 {[%emt 0:00:41]} 13. Kxg2 {[%emt 0:00:07]} c5 {[%emt 0:14:28]} 14. dxc5 {[%emt 0:03:40]} bxc5 {[%emt 0:01:59]} 15. e4 {[%emt 0:10:51]} Nxe4 {[%emt 0:10:17]} 16. Nxe4 {[%emt 0:00:29]} fxe4 {[%emt 0:00:08]} 17. Rad1 {[%emt 0:18:07]} Qf7 {[%emt 0:05:05]} 18. Be1 {[%emt 0:02:03]} Nc6 {[%emt 0:03:55]} 19. Bc3 {[%emt 0:06:26]} Rab8 {[%emt 0:11:14]} 20. Qa4 {[%emt 0:04:49]} Rb6 {[%emt 0:04:10]} 21. Kg1 {[%emt 0:09:43]} d5 {[%emt 0:00:38]} 22. cxd5 {[%emt 0:01:48]} exd5 {[%emt 0:00:06]} 23. Qa3 {[%emt 0:00:54]} d4 {[%emt 0:01:40]} 24. Bd2 {[%emt 0:00:07]} Qh5 {[%emt 0:02:59]} 25. Bf4 {[%emt 0:01:45]} Nb4 {[%emt 0:07:08]} 26. Qxa7 {[%emt 0:07:15]} Rg6 {[%emt 0:01:24]} 27. Qc7 {[%emt 0:03:10]} Nd5 {[%emt 0:02:54]} 28. Qxc5 {[%emt 0:00:05]} Nxf4 {[%emt 0:00:42]} 29. Qxh5 {[%emt 0:00:08]} Nxh5 {[%emt 0:00:07]} 30. Rxd4 {[%emt 0:00:04]} Ra6 {[%emt 0:04:15]} 31. Rxe4 {[%emt 0:01:45]} Rxa2 {[%emt 0:00:07]} 32. Rb4 {[%emt 0:00:04]} Nf6 {[%emt 0:03:51]} 33. Re1 {[%emt 0:01:03]} Rd8 {[%emt 0:00:44]} 34. g4 {[%emt 0:02:50]} h6 {[%emt 0:01:16]} 35. h4 {[%emt 0:00:20]} Ra5 {[%emt 0:01:16]} 36. Kg2 {[%emt 0:03:07]} Rd2 {[%emt 0:00:30]} 37. Re7 {[%emt 0:03:33]} Nd5 {[%emt 0:01:14]} 38. Rb8+ {[%emt 0:00:09]} Kh7 {[%emt 0:00:05]} 39. Ree8 {[%emt 0:00:23]} Nf6 {[%emt 0:00:55]} 40. Rh8+ {[%emt 0:00:00]} Kg6 {[%emt 0:00:00]} 41. Kg3 {[%emt 0:11:52]} Ra4 {[%emt 0:14:05]} 42. f3 {[%emt 0:00:32]} Rd3 {[%emt 0:01:22]} 43. Kf2 {[%emt 0:01:53]} Rf4 {[%emt 0:01:17]} 44. h5+ {[%emt 0:00:48]} Kg5 {[%emt 0:01:20]} 45. Rb5+ {[%emt 0:01:31]} Kh4 {[%emt 0:00:18]} 46. g5 {[%emt 0:00:17]} Rfxf3+ {[%emt 0:01:48]} 47. Ke2 {[%emt 0:00:07]} Rfe3+ {[%emt 0:00:17]} 48. Kf1 {[%emt 0:00:25]} Rd1+ {[%emt 0:00:43]} 49. Kg2 {[%emt 0:00:48]} Rd2+ {[%emt 0:00:09]} 50. Kf1 {[%emt 0:00:07]} Ne4 {[%emt 0:00:18]} 0-1

[Event "VI Sunway Sitges Open 2019"]
[Site "Sitges"]
[Date "2019.12.17"]
[Round "5.49"]
[White "Fjallheim, Leif Reinert"]
[Black "Pena Morales, Hugo"]
[Result "1/2-1/2"]
[ECO "B06"]
[WhiteElo "2018"]
[BlackElo "2203"]
[Annotator "NA"]
[PlyCount "207"]
[EventDate "2019.12.13"]
[EventType "swiss"]
[EventCountry "ESP"]
[SourceTitle "playchess.com"]
[Source "ChessBase"]
[SourceQuality "1"]
[TimeControl "40/5400+30:1800+30"]

1. e4 {[%emt 0:13:35]} g6 {[%emt 0:00:17]} 2. d4 {[%emt 0:00:21]} Bg7 {[%emt 0:00:05]} 3. Nc3 {[%emt 0:00:18]} d6 {[%emt 0:00:07]} 4. Be3 {[%emt 0:00:46]} a6 {[%emt 0:00:11]} 5. a4 {[%emt 0:00:54]} Nd7 {[%emt 0:00:39]} 6. Bc4 {[%emt 0:00:56]} e6 {[%emt 0:00:59]} 7. Nge2 {[%emt 0:02:50]} Ngf6 {[%emt 0:01:10]} 8. f3 {[%emt 0:01:23]} d5 {[%emt 0:00:09]} 9. Bd3 {[%emt 0:02:12]} dxe4 {[%emt 0:00:11]} 10. Nxe4 {[%emt 0:01:56]} Nxe4 {[%emt 0:00:32]} 11. fxe4 {[%emt 0:01:07]} c5 {[%emt 0:00:10]} 12. c3 {[%emt 0:01:12]} cxd4 {[%emt 0:00:33]} 13. cxd4 {[%emt 0:00:48]} Nf6 {[%emt 0:01:24]} 14. h3 {[%emt 0:02:19]} Nxe4 {[%emt 0:00:51]} 15. Bxe4 {[%emt 0:03:17]} Qh4+ {[%emt 0:00:03]} 16. Ng3 {[%emt 0:00:12]} Qxg3+ {[%emt 0:00:05]} 17. Bf2 {[%emt 0:00:07]} Qf4 {[%emt 0:00:57]} 18. Qd3 {[%emt 0:00:59]} O-O {[%emt 0:00:48]} 19. O-O {[%emt 0:02:45]} Qd6 {[%emt 0:00:04]} 20. Qc3 {[%emt 0:03:12]} Rd8 {[%emt 0:03:24]} 21. Rad1 {[%emt 0:02:03]} a5 {[%emt 0:05:27]} 22. Qf3 {[%emt 0:04:47]} f5 {[%emt 0:02:59]} 23. Bxb7 {[%emt 0:04:00]} Bxb7 {[%emt 0:00:17]} 24. Qxb7 {[%emt 0:00:07]} Rab8 {[%emt 0:00:12]} 25. Qa7 {[%emt 0:02:31]} Qb6 {[%emt 0:02:50]} 26. Qxb6 {[%emt 0:06:36]} Rxb6 {[%emt 0:00:02]} 27. d5 {[%emt 0:00:50]} Rbd6 {[%emt 0:00:16]} 28. Bh4 {[%emt 0:00:15]} R8d7 {[%emt 0:02:53]} 29. dxe6 {[%emt 0:03:31]} Rxd1 {[%emt 0:00:05]} 30. exd7 {[%emt 0:00:09]} Rxd7 {[%emt 0:00:02]} 31. b3 {[%emt 0:03:06]} Rd3 {[%emt 0:00:20]} 32. Rb1 {[%emt 0:00:59]} Bc3 {[%emt 0:00:25]} 33. Kf1 {[%emt 0:03:17]} Rd4 {[%emt 0:07:34]} 34. Bg3 {[%emt 0:11:56]} Bb4 {[%emt 0:01:00]} 35. Be1 {[%emt 0:03:23]} Rf4+ {[%emt 0:00:12]} 36. Ke2 {[%emt 0:00:07]} Re4+ {[%emt 0:00:05]} 37. Kf1 {[%emt 0:00:11]} Kf7 {[%emt 0:03:24]} 38. Bxb4 {[%emt 0:02:27]} Rxb4 {[%emt 0:00:02]} 39. Rc1 {[%emt 0:04:19]} Rxb3 {[%emt 0:00:30]} 40. Rc5 {[%emt 0:00:05]} Kf6 {[%emt 0:00:26]} 41. Rxa5 {[%emt 0:00:39]} Ra3 {[%emt 0:02:14]} 42. Ra7 {[%emt 0:05:41]} h6 {[%emt 0:00:11]} 43. h4 {[%emt 0:03:04]} f4 {[%emt 0:00:28]} 44. Ra5 {[%emt 0:00:08]} h5 {[%emt 0:01:22]} 45. Kf2 {[%emt 0:00:37]} Ke6 {[%emt 0:02:10]} 46. Rg5 {[%emt 0:01:52]} Kf6 {[%emt 0:00:16]} 47. Ra5 {[%emt 0:01:23]} Ra1 {[%emt 0:00:32]} 48. g3 {[%emt 0:03:21]} Ra3 {[%emt 0:01:20]} 49. gxf4 {[%emt 0:06:11]} Rh3 {[%emt 0:00:02]} 50. Rb5 {[%emt 0:04:17]} Rxh4 {[%emt 0:00:14]} 51. Kg3 {[%emt 0:00:15]} Rg4+ {[%emt 0:00:08]} 52. Kf3 {[%emt 0:00:04]} Rg1 {[%emt 0:00:04]} 53. a5 {[%emt 0:01:30]} Rf1+ {[%emt 0:00:23]} 54. Kg3 {[%emt 0:00:56]} Ra1 {[%emt 0:02:08]} 55. Rc5 {[%emt 0:04:30]} Ra3+ {[%emt 0:00:11]} 56. Kg2 {[%emt 0:01:46]} Kg7 {[%emt 0:02:04]} 57. Rb5 {[%emt 0:00:39]} Ra2+ {[%emt 0:02:32]} 58. Kg3 {[%emt 0:00:31]} Ra1 {[%emt 0:02:30]} 59. Rc5 {[%emt 0:00:50]} Kf7 {[%emt 0:00:09]} 60. Rb5 {[%emt 0:01:44]} Ke7 {[%emt 0:00:06]} 61. Kg2 {[%emt 0:00:14]} Kf6 {[%emt 0:02:55]} 62. Kg3 {[%emt 0:00:29]} Ra3+ {[%emt 0:01:29]} 63. Kg2 {[%emt 0:00:19]} h4 {[%emt 0:00:02]} 64. Rc5 {[%emt 0:00:40]} Kg7 {[%emt 0:03:53]} 65. Rb5 {[%emt 0:00:37]} Kf6 {[%emt 0:00:41]} 66. Rc5 {[%emt 0:00:05]} Ra4 {[%emt 0:00:04]} 67. Kf3 {[%emt 0:00:50]} Ra3+ {[%emt 0:01:13]} 68. Kg2 {[%emt 0:00:06]} Rg3+ {[%emt 0:00:19]} 69. Kf2 {[%emt 0:00:23]} Rg4 {[%emt 0:00:49]} 70. Kf3 {[%emt 0:00:05]} Rg1 {[%emt 0:00:02]} 71. Kf2 {[%emt 0:00:10]} Ra1 {[%emt 0:00:06]} 72. Kg2 {[%emt 0:00:06]} Rb1 {[%emt 0:02:06]} 73. Kh3 {[%emt 0:00:32]} Rb4 {[%emt 0:00:52]} 74. Kxh4 {[%emt 0:00:25]} Rxf4+ {[%emt 0:00:02]} 75. Kg3 {[%emt 0:00:16]} Ra4 76. Rb5 {[%emt 0:01:05]} Kg7 {[%emt 0:00:31]} 77. Rc5 {[%emt 0:02:14]} Kh6 {[%emt 0:01:39]} 78. Rb5 {[%emt 0:00:28]} g5 {[%emt 0:00:06]} 79. Rb6+ {[%emt 0:00:20]} Kh5 {[%emt 0:00:02]} 80. a6 {[%emt 0:00:15]} Ra3+ {[%emt 0:00:02]} 81. Kg2 {[%emt 0:00:08]} Kh4 {[%emt 0:00:10]} 82. Rc6 {[%emt 0:01:36]} Ra2+ {[%emt 0:00:07]} 83. Kg1 {[%emt 0:00:20]} g4 {[%emt 0:00:13]} 84. Rc3 {[%emt 0:01:24]} Rxa6 {[%emt 0:00:34]} 85. Rb3 {[%emt 0:00:08]} Ra1+ {[%emt 0:00:42]} 86. Kg2 {[%emt 0:00:05]} Ra2+ {[%emt 0:00:06]} 87. Kg1 {[%emt 0:00:04]} Kg5 {[%emt 0:00:49]} 88. Rc3 {[%emt 0:00:11]} Rd2 {[%emt 0:01:25]} 89. Rb3 {[%emt 0:00:27]} Kh4 {[%emt 0:00:44]} 90. Rc3 {[%emt 0:00:39]} Rd6 {[%emt 0:00:59]} 91. Kg2 {[%emt 0:00:47]} Rd2+ {[%emt 0:00:21]} 92. Kg1 {[%emt 0:00:05]} Re2 {[%emt 0:00:04]} 93. Rb3 {[%emt 0:01:06]} Re1+ {[%emt 0:00:20]} 94. Kg2 {[%emt 0:00:11]} Re2+ {[%emt 0:00:08]} 95. Kg1 {[%emt 0:00:05]} Rc2 {[%emt 0:00:52]} 96. Ra3 {[%emt 0:00:14]} Kg5 {[%emt 0:00:21]} 97. Rb3 {[%emt 0:00:10]} Kf4 {[%emt 0:00:14]} 98. Ra3 {[%emt 0:00:55]} Rc4 {[%emt 0:04:09]} 99. Kg2 {[%emt 0:00:29]} Kg5 {[%emt 0:00:20]} 100. Kg3 {[%emt 0:00:31]} Rc5 {[%emt 0:00:13]} 101. Rb3 {[%emt 0:00:19]} Rf5 {[%emt 0:00:07]} 102. Ra3 {[%emt 0:00:18]} Rf3+ {[%emt 0:00:14]} 103. Rxf3 {[%emt 0:00:07]} gxf3 {[%emt 0:00:03]} 104. Kxf3 {[%emt 0:00:04]} 1/2-1/2

[Event "VI Sunway Sitges Open 2019"]
[Site "Sitges"]
[Date "2019.12.17"]
[Round "5.50"]
[White "Van Kessel, Wessel"]
[Black "Silva, Pedro Gil Ferreira D"]
[Result "1/2-1/2"]
[ECO "A37"]
[WhiteElo "2095"]
[BlackElo "1919"]
[Annotator "NA"]
[PlyCount "99"]
[EventDate "2019.12.13"]
[EventType "swiss"]
[EventCountry "ESP"]
[SourceTitle "playchess.com"]
[Source "ChessBase"]
[SourceQuality "1"]
[TimeControl "40/5400+30:1800+30"]

1. c4 {[%emt 6:44:46]} e5 {[%emt 0:00:06]} 2. g3 {[%emt 0:00:03]} c5 {[%emt 0:00:04]} 3. Bg2 {[%emt 0:00:35]} Nc6 {[%emt 0:00:09]} 4. Nc3 {[%emt 0:00:05]} g6 {[%emt 0:00:10]} 5. d3 {[%emt 0:00:34]} Bg7 {[%emt 0:00:16]} 6. Nf3 {[%emt 0:00:10]} Nge7 {[%emt 0:00:08]} 7. O-O {[%emt 0:00:16]} O-O {[%emt 0:00:18]} 8. Ne1 {[%emt 0:00:12]} d6 {[%emt 0:01:16]} 9. Nc2 {[%emt 0:00:19]} Be6 {[%emt 0:00:48]} 10. Ne3 {[%emt 0:00:33]} Rb8 {[%emt 0:04:56]} 11. Bd2 {[%emt 0:07:48]} a6 {[%emt 0:05:40]} 12. a4 {[%emt 0:00:22]} h6 {[%emt 0:04:58]} 13. Ned5 {[%emt 0:01:51]} f5 {[%emt 0:06:04]} 14. Rb1 {[%emt 0:11:53]} Nb4 {[%emt 0:22:16]} 15. Nxe7+ {[%emt 0:10:58]} Qxe7 {[%emt 0:01:50]} 16. Nd5 {[%emt 0:00:17]} Bxd5 {[%emt 0:03:17]} 17. cxd5 {[%emt 0:01:40]} a5 {[%emt 0:03:05]} 18. Qc1 {[%emt 0:09:34]} Kh7 {[%emt 0:07:06]} 19. Qc4 {[%emt 0:01:30]} Qd7 {[%emt 0:09:10]} 20. Bh3 {[%emt 0:19:33]} b5 {[%emt 0:09:29]} 21. axb5 {[%emt 0:00:24]} Qxb5 {[%emt 0:00:06]} 22. Bc3 {[%emt 0:02:20]} e4 {[%emt 0:05:52]} 23. Qxb5 {[%emt 0:06:12]} Rxb5 {[%emt 0:00:45]} 24. dxe4 {[%emt 0:00:09]} fxe4 {[%emt 0:00:28]} 25. Rfd1 {[%emt 0:06:23]} Rfb8 {[%emt 0:07:26]} 26. Ra1 {[%emt 0:01:48]} Nc2 {[%emt 0:02:24]} 27. Ra4 {[%emt 0:02:55]} Nd4 {[%emt 0:01:57]} 28. Bf1 {[%emt 0:02:31]} e3 {[%emt 0:02:24]} 29. fxe3 {[%emt 0:01:51]} Nc2 {[%emt 0:01:35]} 30. e4 {[%emt 0:05:02]} Bxc3 {[%emt 0:00:47]} 31. bxc3 {[%emt 0:00:02]} Ne3 {[%emt 0:00:06]} 32. Rd3 {[%emt 0:00:42]} Ng4 {[%emt 0:00:24]} 33. Rf3 {[%emt 0:00:47]} Kg7 {[%emt 0:00:22]} 34. e3 {[%emt 0:00:59]} Rb1 {[%emt 0:00:38]} 35. Rxa5 {[%emt 0:00:04]} Ne5 {[%emt 0:00:59]} 36. Ra7+ {[%emt 0:00:13]} R1b7 {[%emt 0:00:19]} 37. Rxb7+ {[%emt 0:00:46]} Rxb7 {[%emt 0:00:04]} 38. Rf2 {[%emt 0:00:29]} Rb3 {[%emt 0:00:17]} 39. Rc2 {[%emt 0:00:44]} Ng4 {[%emt 0:00:45]} 40. Rc1 {[%emt 0:04:08]} Kf6 {[%emt 0:01:15]} 41. Be2 {[%emt 0:02:03]} Ne5 {[%emt 0:01:55]} 42. Rc2 {[%emt 0:04:45]} Ra3 {[%emt 0:02:18]} 43. Kf2 {[%emt 0:00:15]} Nd7 {[%emt 0:02:55]} 44. Bb5 {[%emt 0:02:11]} Ne5 {[%emt 0:01:29]} 45. h3 {[%emt 0:00:41]} Ra5 {[%emt 0:00:45]} 46. Be2 {[%emt 0:00:30]} Ra3 {[%emt 0:00:33]} 47. h4 {[%emt 0:03:11]} h5 {[%emt 0:03:10]} 48. Kg2 {[%emt 0:04:53]} Rb3 {[%emt 0:02:49]} 49. Kh3 {[%emt 0:04:59]} Rb1 {[%emt 0:02:20]} 50. Kg2 {[%emt 0:00:27]} 1/2-1/2

[Event "VI Sunway Sitges Open 2019"]
[Site "Sitges"]
[Date "2019.12.17"]
[Round "5.51"]
[White "Casares Bonals, Ainhoa"]
[Black "Roch, Florian"]
[Result "0-1"]
[ECO "B90"]
[WhiteElo "1821"]
[BlackElo "1979"]
[Annotator "NA"]
[PlyCount "62"]
[EventDate "2019.12.13"]
[EventType "swiss"]
[EventCountry "ESP"]
[SourceTitle "playchess.com"]
[Source "ChessBase"]
[SourceQuality "1"]
[TimeControl "40/5400+30:1800+30"]

1. e4 {[%emt 0:00:00]} c5 {[%emt 0:00:00]} 2. Nf3 {[%emt 0:00:00]} d6 {[%emt 0:00:00]} 3. d4 {[%emt 0:00:12]} cxd4 {[%emt 0:00:00]} 4. Nxd4 {[%emt 0:00:00]} Nf6 {[%emt 0:00:00]} 5. Nc3 {[%emt 0:00:00]} a6 {[%emt 0:00:18]} 6. Be3 {[%emt 0:00:21]} Ng4 {[%emt 0:02:27]} 7. Bg5 {[%emt 0:02:44]} h6 {[%emt 0:00:00]} 8. Bh4 {[%emt 0:01:02]} g5 {[%emt 0:00:00]} 9. Bg3 {[%emt 0:00:06]} Bg7 {[%emt 0:02:00]} 10. Be2 {[%emt 0:02:15]} h5 {[%emt 0:02:07]} 11. h3 {[%emt 0:02:49]} h4 {[%emt 0:00:00]} 12. hxg4 {[%emt 0:05:10]} hxg3 {[%emt 0:00:00]} 13. Rxh8+ {[%emt 0:00:19]} Bxh8 {[%emt 0:00:00]} 14. fxg3 {[%emt 0:05:31]} Nc6 {[%emt 0:00:00]} 15. Nxc6 {[%emt 0:05:38]} bxc6 {[%emt 0:00:00]} 16. Qd2 {[%emt 0:05:48]} Qa5 {[%emt 0:00:53]} 17. Kf2 {[%emt 0:06:13]} Be6 {[%emt 0:08:22]} 18. Rh1 {[%emt 0:02:06]} Kd7 {[%emt 0:03:58]} 19. Rh5 {[%emt 0:01:07]} Bf6 {[%emt 0:02:27]} 20. Qd3 {[%emt 0:02:34]} Rb8 {[%emt 0:06:51]} 21. Nd1 {[%emt 0:03:02]} Qxa2 {[%emt 0:19:29]} 22. e5 {[%emt 0:04:46]} Bxe5 {[%emt 0:00:20]} 23. Rxg5 {[%emt 0:00:21]} f6 {[%emt 0:02:22]} 24. Rg6 {[%emt 0:05:37]} Qa5 {[%emt 0:09:08]} 25. c3 {[%emt 0:05:41]} Qb6+ {[%emt 0:08:52]} 26. Ke1 {[%emt 0:03:31]} a5 {[%emt 0:07:06]} 27. g5 {[%emt 0:06:57]} Rh8 {[%emt 0:04:12]} 28. Kd2 {[%emt 0:03:54]} Rh1 {[%emt 0:03:32]} 29. g4 {[%emt 0:03:13]} Bf4+ {[%emt 0:02:09]} 30. Kc2 {[%emt 0:00:20]} Qb3+ {[%emt 0:00:31]} 31. Kb1 {[%emt 0:00:16]} Qa2+ {[%emt 0:00:10]} 0-1